bitfinex-derivatives/quotes_SOLF0:USTF0_20250419
["timestamp","ask_amount","ask_price","bid_price","bid_amount"]
[1745027099199,1.21470062,135.72,135.05,21.5000136]
[1745027099401,1.21470062,135.71,134.39,1.28822092]
[1745027099598,2.72766915,135.98,135.05,21.5000136]
[1745027099900,1.21493394,135.97,135.05,21.5000136]
[1745027100100,1.21493394,135.96,134.39,1.28822092]
[1745027100402,1.21493394,135.95,135.05,21.5000136]
[1745027100700,1.21493394,135.94,135.05,21.5000136]
[1745027101002,1.21493394,135.93,134.39,1.28822092]
[1745027101193,1.21493394,135.92,135.05,21.5000136]
[1745027101399,1.21493394,135.91,135.05,21.5000136]
[1745027101598,1.21493394,135.9,134.39,1.28822092]
[1745027101899,1.21493394,135.89,135.05,21.5000136]
[1745027102100,1.21493394,135.88,135.05,21.5000136]
[1745027102300,1.21493394,135.87,135.06,21.5000136]
[1745027102500,1.21496418,135.86,135.06,21.5000136]
[1745027102701,1.21496418,135.85,135.06,21.5000136]
[1745027103000,1.21496418,135.84,135.06,21.5000136]
[1745027103202,1.21496418,135.83,135.06,21.5000136]
[1745027103499,1.21496418,135.82,135.06,21.5000136]
[1745027103700,1.21496418,135.81,134.47,1.28872183]
[1745027103900,1.21496418,135.8,135.07,21.5000136]
[1745027104093,1.21496418,135.79,135.08,21.5000136]
[1745027104494,1.21496418,135.78,135.08,21.5000136]
[1745027104693,1.21496418,135.77,135.08,21.5000136]
[1745027104901,1.21496418,135.76,135.08,21.5000136]
[1745027105102,1.21496418,135.75,135.08,21.5000136]
[1745027105302,1.21496418,135.74,135.09,21.5000136]
[1745027105603,1.21496418,135.73,135.09,21.5000136]
[1745027105804,1.21496418,135.72,135.09,21.5000136]
[1745027106102,1.21496418,135.71,135.09,21.5000136]
[1745027106402,1.21496418,135.7,135.1,21.5000136]
[1745027106602,1.21496418,135.69,135.1,21.5000136]
[1745027106802,1.21496418,135.68,135.1,21.5000136]
[1745027107105,2.72766915,135.98,135.1,21.5000136]
[1745027107299,1.21471365,135.67,135.12,21.5000136]
[1745027107501,1.21471365,135.66,135.12,21.5000136]
[1745027107701,1.21471365,135.65,134.53,1.28855482]
[1745027107902,1.21471365,135.64,135.12,21.5000136]
[1745027108103,1.21471365,135.63,135.12,21.5000136]
[1745027108301,1.21471365,135.62,135.13,21.5000136]
[1745027108502,1.21471365,135.61,135.13,21.5000136]
[1745027108802,1.21471365,135.6,134.53,1.28855482]
[1745027109005,1.21471365,135.59,135.13,21.5000136]
[1745027109203,1.21471365,135.58,135.13,21.5000136]
[1745027109404,1.21471365,135.57,134.27,3.00838183]
[1745027109705,1.21471365,135.56,135.13,21.5000136]
[1745027109905,1.21471365,135.55,135.13,21.5000136]
[1745027110101,1.21471365,135.54,134.3,3.00838183]
[1745027110303,1.21471365,135.53,135.13,21.5000136]
[1745027110704,1.21471365,135.52,134.32,3.00838183]
[1745027110904,1.21471365,135.52,135.13,21.5000136]
[1745027111099,1.21471365,135.51,134.33,4.37310207]
[1745027111304,1.21471365,135.51,135.13,21.5000136]
[1745027111505,1.21471365,135.5,135.13,21.5000136]
[1745027111702,1.21471365,135.49,134.35,3.00838183]
[1745027111903,2.72766915,135.98,135.12,21.5000136]
[1745027112101,1.21470452,135.97,135.12,21.5000136]
[1745027112306,1.21470452,135.96,135.13,21.5000136]
[1745027112606,1.21470452,135.95,135.13,21.5000136]
[1745027112807,1.21470452,135.94,135.13,21.5000136]
[1745027113006,1.21470452,135.93,135.13,21.5000136]
[1745027113206,1.21470452,135.92,135.14,21.5000136]
[1745027113407,1.21470452,135.91,135.14,21.5000136]
[1745027113607,1.21470452,135.9,135.14,21.5000136]
[1745027113906,1.21470452,135.89,135.14,21.5000136]
[1745027114108,1.21470452,135.88,135.14,21.5000136]
[1745027114301,1.21470452,135.87,135.15,21.5000136]
[1745027114504,1.21470452,135.86,135.15,21.5000136]
[1745027114802,1.21470452,135.85,135.15,21.5000136]
[1745027115006,1.21470452,135.84,135.15,21.5000136]
[1745027115201,2.72766915,135.98,134.43,1.2884117]
[1745027115202,2.72766915,135.98,135.16,21.5000136]
[1745027115405,1.21471365,135.97,135.16,21.5000136]
[1745027115707,1.21471365,135.96,135.16,21.5000136]
[1745027115909,1.21471365,135.95,135.16,21.5000136]
[1745027116110,1.21471365,135.94,135.16,21.5000136]
[1745027116310,1.21471365,135.93,135.17,21.5000136]
[1745027116509,1.21471365,135.92,135.17,21.5000136]
[1745027116809,2.72766915,135.98,135.17,21.5000136]
[1745027117004,1.21471368,135.91,135.17,21.5000136]
[1745027117204,1.21471368,135.91,134.5,1.28834015]
[1745027117205,1.21471368,135.9,135.18,21.5000136]
[1745027117410,1.21471368,135.89,135.18,21.5000136]
[1745027117711,1.21471368,135.88,135.18,21.5000136]
[1745027117909,1.21471368,135.87,135.18,21.5000136]
[1745027118108,1.21471368,135.86,135.18,21.5000136]
[1745027118302,1.21471368,135.85,135.19,21.5000136]
[1745027118512,1.21470436,135.84,135.19,21.5000136]
[1745027118711,1.21470436,135.83,135.21,21.5000136]
[1745027119115,1.21470436,135.82,134.55,1.28822092]
[1745027119314,1.21470436,135.81,135.22,21.5000136]
[1745027119511,1.21470436,135.8,135.23,21.5000136]
[1745027119711,1.21470436,135.79,135.23,21.5000136]
[1745027119911,1.21470436,135.78,134.55,1.28822092]
[1745027120108,1.21470436,135.77,134.56,1.36451548]
[1745027120314,1.21470436,135.76,135.25,21.5000136]
[1745027120614,1.21470436,135.75,135.25,21.5000136]
[1745027120816,1.21470436,135.74,134.55,1.28822092]
[1745027121016,1.21470436,135.73,135.25,21.5000136]
[1745027121217,1.21470436,135.72,135.25,21.5000136]
[1745027121417,1.21470436,135.71,134.39,3.00817344]
[1745027121618,2.72766915,136.0,135.25,21.5000136]
[1745027121919,1.21422791,135.99,135.25,21.5000136]
[1745027122220,1.21422791,135.98,135.26,21.5000136]
[1745027122415,1.21422791,135.97,135.26,21.5000136]
[1745027122615,1.21422791,135.96,134.62,1.28783954]
[1745027122813,1.21422791,135.95,135.26,21.5000136]
[1745027123013,1.21422791,135.94,135.26,21.5000136]
[1745027123215,1.21422791,135.94,135.27,21.5000136]
[1745027123518,1.21422791,135.93,135.27,21.5000136]
[1745027123714,1.21422791,135.92,134.62,1.28783954]
[1745027123915,1.21422791,135.91,135.27,21.5000136]
[1745027124121,1.21422791,135.9,135.27,21.5000136]
[1745027124321,1.21422791,135.89,134.37,3.00504236]
[1745027124520,1.21422791,135.88,135.27,21.5000136]
[1745027124715,1.21422791,135.87,135.27,21.5000136]
[1745027124918,2.72766915,136.03,134.64,1.2877204]
[1745027125220,1.21421416,136.02,135.27,21.5000136]
[1745027125420,1.21421416,136.01,134.64,1.2877204]
[1745027125620,1.21421416,136.0,135.27,21.5000136]
[1745027125821,1.21421416,135.99,135.27,21.5000136]
[1745027126022,1.21421416,135.98,134.64,1.2877204]
[1745027126221,1.21421416,135.97,135.27,21.5000136]
[1745027126418,1.21421416,135.96,135.27,21.5000136]
[1745027126623,1.21421416,135.95,134.64,1.2877204]
[1745027126922,1.21421416,135.94,135.27,21.5000136]
[1745027127123,1.21421416,135.93,135.27,21.5000136]
[1745027127323,1.21421416,135.92,134.37,3.00496961]
[1745027127524,1.21421416,135.91,135.27,21.5000136]
[1745027127725,1.21421416,135.9,135.27,21.5000136]
[1745027128023,1.21421416,135.89,134.4,3.00496961]
[1745027128225,1.21421416,135.88,135.27,21.5000136]
[1745027128624,1.21421416,135.87,134.38,3.00496961]
[1745027128819,1.21421416,135.86,135.27,21.5000136]
[1745027129023,2.72766915,136.03,135.27,21.5000136]
[1745027129024,1.21421416,135.85,135.27,21.5000136]
[1745027129225,1.21421416,135.84,135.28,21.5000136]
[1745027129423,1.21421416,135.83,135.28,21.5000136]
[1745027129624,2.72766915,136.03,134.65,1.2877204]
[1745027129625,1.21421416,135.82,134.65,1.2877204]
[1745027129825,2.72766915,136.03,135.28,21.5000136]
[1745027130129,1.214205,136.02,135.28,21.5000136]
[1745027130331,1.214205,136.02,134.65,1.2877204]
[1745027130532,1.214205,136.02,135.28,21.5000136]
[1745027130730,1.214205,136.01,134.65,1.2877204]
[1745027130924,2.72766915,136.03,135.28,21.5000136]
[1745027131226,1.2142142,136.01,135.28,21.5000136]
[1745027131427,1.2142142,136.01,134.65,1.2877204]
[1745027131628,1.2142142,136.02,135.28,21.5000136]
[1745027131827,1.2142142,136.0,135.28,21.5000136]
[1745027132026,1.2142142,136.01,134.65,1.2877204]
[1745027132228,1.2142142,135.99,135.28,21.5000136]
[1745027132528,1.2142142,135.98,135.28,21.5000136]
[1745027132726,1.2142142,135.97,134.65,1.2877204]
[1745027132925,1.2142142,135.96,135.28,21.5000136]
[1745027133226,1.2142142,135.95,135.28,21.5000136]
[1745027133427,1.2142142,135.94,134.37,3.00502041]
[1745027133627,1.2142142,135.93,135.28,21.5000136]
[1745027133823,1.2142142,135.92,135.28,21.5000136]
[1745027134029,1.2142142,135.91,134.4,3.00502041]
[1745027134230,2.72766915,136.03,135.28,21.5000136]
[1745027134430,1.21421416,136.02,135.28,21.5000136]
[1745027134732,1.21421416,136.01,134.65,1.28769658]
[1745027135028,1.21421416,136.0,135.28,21.5000136]
[1745027135230,1.21421416,135.99,135.28,21.5000136]
[1745027135430,1.21421416,135.98,134.65,1.28769658]
[1745027135632,1.21421416,135.97,135.28,21.5000136]
[1745027135828,1.21421416,135.96,135.28,21.5000136]
[1745027136030,1.21421416,135.95,134.65,1.28769658]
[1745027136324,1.21421416,135.94,135.28,21.5000136]
[1745027136529,1.21421416,135.93,135.28,21.5000136]
[1745027136828,1.21421416,135.92,134.65,1.28982043]
[1745027137027,1.21421416,135.91,135.28,21.5000136]
[1745027137332,1.21421416,135.9,135.28,21.5000136]
[1745027137529,1.21421416,135.89,134.65,1.28982043]
[1745027137830,1.21421416,135.88,135.28,21.5000136]
[1745027138023,1.21421416,135.87,135.28,21.5000136]
[1745027138227,1.21421416,135.86,135.29,21.5000136]
[1745027138426,1.21421416,135.85,135.29,21.5000136]
[1745027138628,1.21421416,135.84,134.65,1.28982043]
[1745027138830,1.21421416,135.83,135.29,21.5000136]
[1745027139227,1.21421416,135.82,135.29,21.5000136]
[1745027139428,1.21421416,135.81,135.29,21.5000136]
[1745027139629,1.21421416,135.8,135.29,21.5000136]
[1745027139834,1.21421416,135.79,135.29,21.5000136]
[1745027140026,2.72766915,136.02,135.29,21.5000136]
[1745027140027,1.21421416,135.78,135.29,21.5000136]
[1745027140333,1.21421416,135.77,135.3,21.5000136]
[1745027140534,1.21421416,135.76,135.3,21.5000136]
[1745027140730,1.21421416,135.75,135.3,21.5000136]
[1745027140931,1.21421416,135.74,135.3,21.5000136]
[1745027141231,1.21421416,135.73,135.31,21.5000136]
[1745027141429,2.72766915,136.02,135.31,21.5000136]
[1745027141631,1.21430103,136.01,135.31,21.5000136]
[1745027141934,1.21430103,136.0,135.31,21.5000136]
[1745027142131,1.21430103,135.99,135.31,21.5000136]
[1745027142328,1.21430103,135.98,135.32,21.5000136]
[1745027142532,1.21430103,135.97,135.32,21.5000136]
[1745027142833,1.21430103,135.96,135.32,21.5000136]
[1745027143029,2.72766915,136.02,135.32,21.5000136]
[1745027143233,1.21430102,135.95,135.33,21.5000136]
[1745027143427,1.21430102,135.94,135.33,21.5000136]
[1745027143631,1.21430102,135.93,134.65,1.28767275]
[1745027143830,1.21430102,135.92,135.33,21.5000136]
[1745027144027,1.21430102,135.91,135.33,21.5000136]
[1745027144328,1.21430102,135.9,134.65,1.28767275]
[1745027144628,1.21430102,135.89,135.33,21.5000136]
[1745027144928,1.21437464,135.88,135.33,21.5000136]
[1745027145133,1.21437464,135.88,134.65,1.28767275]
[1745027145134,1.21437464,135.87,134.65,1.28767275]
[1745027145334,1.21437464,135.86,135.33,21.5000136]
[1745027145533,1.21437464,135.85,135.33,21.5000136]
[1745027145734,1.21437464,135.84,134.65,1.28993995]
[1745027145934,1.21437464,135.83,135.33,21.5000136]
[1745027146134,1.21437464,135.82,135.33,21.5000136]
[1745027146334,2.72766915,136.02,134.65,1.28993995]
[1745027146533,1.21439649,135.81,135.33,21.5000136]
[1745027146735,1.21439649,135.8,134.65,1.28993995]
[1745027146929,1.21439649,135.79,135.33,21.5000136]
[1745027147235,1.21439649,135.78,135.33,21.5000136]
[1745027147435,1.21439649,135.77,134.65,1.28993995]
[1745027147638,2.72766915,136.02,135.33,21.5000136]
[1745027147639,1.21439649,135.76,135.33,21.5000136]
[1745027147832,1.21439649,135.75,135.32,21.5000136]
[1745027148033,2.72766915,136.01,135.32,21.5000136]
[1745027148235,1.21445997,136.0,135.33,21.5000136]
[1745027148535,1.21445997,135.99,135.33,21.5000136]
[1745027148733,1.21445997,135.98,134.63,1.28779188]
[1745027148939,1.21445997,135.97,135.33,21.5000136]
[1745027149133,1.21445997,135.96,134.63,1.28779188]
[1745027149433,1.21445997,135.95,135.33,21.5000136]
[1745027149731,1.21450082,135.94,135.33,21.5000136]
[1745027149933,1.21450082,135.93,135.33,21.5000136]
[1745027150235,1.21450082,135.93,135.34,21.5000136]
[1745027150437,1.21450082,135.92,135.34,21.5000136]
[1745027150838,1.21450082,135.91,135.34,21.5000136]
[1745027151341,2.72766915,136.01,135.35,21.5000136]
[1745027151640,1.21450082,135.9,135.35,21.5000136]
[1745027151836,1.21450082,135.89,134.63,1.2877204]
[1745027152040,1.21450082,135.88,135.35,21.5000136]
[1745027152241,1.21450082,135.87,135.35,21.5000136]
[1745027152441,1.21450082,135.86,134.63,1.2877204]
[1745027152741,1.21450082,135.85,135.35,21.5000136]
[1745027152942,1.21450082,135.84,135.35,21.5000136]
[1745027153134,1.21450082,135.83,134.63,1.2877204]
[1745027153336,1.21450082,135.82,135.35,21.5000136]
[1745027153538,1.21450082,135.81,135.35,21.5000136]
[1745027153737,1.21450082,135.8,134.63,1.2877204]
[1745027153934,1.21450082,135.79,135.35,21.5000136]
[1745027154138,1.21450082,135.78,135.34,21.5000136]
[1745027154442,1.21450082,135.77,135.34,21.5000136]
[1745027154634,2.72766915,136.0,135.34,21.5000136]
[1745027154834,1.21467628,135.99,134.62,1.28781571]
[1745027155035,1.21467628,135.98,135.34,21.5000136]
[1745027155341,1.21467628,135.97,135.34,21.5000136]
[1745027155541,1.21467628,135.96,134.62,1.28781571]
[1745027155741,1.21467628,135.95,135.34,21.5000136]
[1745027155942,1.21467628,135.94,135.34,21.5000136]
[1745027156143,1.21465884,135.93,134.62,1.28781571]
[1745027156344,1.21465884,135.92,135.35,21.5000136]
[1745027156548,1.21465884,135.91,135.35,21.5000136]
[1745027156740,1.21465884,135.9,134.62,1.28781571]
[1745027156939,1.21465884,135.89,135.35,21.5000136]
[1745027157144,1.21465884,135.88,135.35,21.5000136]
[1745027157340,1.21465884,135.87,134.62,1.28781571]
[1745027157542,1.21466455,135.86,135.35,21.5000136]
[1745027157743,1.21466455,135.85,135.35,21.5000136]
[1745027157939,1.21466455,135.84,134.62,1.28781571]
[1745027158144,1.21466455,135.83,135.35,21.5000136]
[1745027158345,1.21466455,135.82,135.35,21.5000136]
[1745027158545,1.21466455,135.81,134.62,1.28781571]
[1745027158747,2.72766915,135.99,135.35,21.5000136]
[1745027158946,1.21467372,135.98,135.35,21.5000136]
[1745027159151,1.21467372,135.97,135.36,21.5000136]
[1745027159347,1.21467372,135.96,135.36,21.5000136]
[1745027159547,1.21467372,135.95,135.36,21.5000136]
[1745027159747,1.21467372,135.94,135.36,21.5000136]
[1745027159947,1.21467372,135.93,135.36,21.5000136]
[1745027160150,2.72766915,135.99,134.62,1.28781571]
[1745027160445,1.21460033,135.98,135.37,21.5000136]
[1745027160648,1.21460033,135.97,135.37,21.5000136]
[1745027160848,1.21460033,135.96,135.37,21.5000136]
[1745027161143,1.21460033,135.95,134.62,1.28781571]
[1745027161349,1.21460235,135.94,135.38,21.5000136]
[1745027161649,1.21460235,135.93,135.38,21.5000136]
[1745027161947,1.21460235,135.92,134.62,1.28781571]
[1745027162248,1.21460235,135.91,135.38,21.5000136]
[1745027162447,1.21460235,135.9,135.38,21.5000136]
[1745027162643,2.72766915,135.99,134.62,1.28781571]
[1745027162849,1.21460062,135.98,135.38,21.5000136]
[1745027163148,1.21460062,135.97,135.39,21.5000136]
[1745027163346,1.21460062,135.96,135.39,21.5000136]
[1745027163549,1.21460062,135.95,134.62,1.28781571]
[1745027163844,1.21460062,135.94,135.39,21.5000136]
[1745027164049,1.21459143,135.93,135.39,21.5000136]
[1745027164248,1.21459143,135.92,135.4,21.5000136]
[1745027164449,1.21459143,135.91,135.4,21.5000136]
[1745027164648,1.21459143,135.9,134.62,1.28781571]
[1745027164849,1.21459143,135.89,135.4,21.5000136]
[1745027165050,1.21459143,135.88,135.4,21.5000136]
[1745027165347,1.21460063,135.87,135.4,21.5000136]
[1745027165552,1.21460063,135.86,135.4,21.5000136]
[1745027165753,1.21460063,135.85,135.4,21.5000136]
[1745027165952,1.21460063,135.84,135.4,21.5000136]
[1745027166252,1.21460063,135.83,135.41,21.5000136]
[1745027166450,1.21460063,135.82,135.41,21.5000136]
[1745027166645,1.21460063,135.81,135.41,21.5000136]
[1745027166849,1.21460063,135.8,135.41,21.5000136]
[1745027167050,1.21460063,135.79,135.41,21.5000136]
[1745027167246,1.21460063,135.78,135.42,21.5000136]
[1745027167445,1.21460063,135.77,135.42,21.5000136]
[1745027167653,1.21460063,135.76,134.62,1.28781571]
[1745027167955,1.21469624,135.75,135.41,21.5000136]
[1745027168251,1.21469624,135.74,135.41,21.5000136]
[1745027168454,1.21469624,135.73,135.41,21.5000136]
[1745027168651,1.21469624,135.72,135.41,21.5000136]
[1745027168852,1.21469624,135.71,135.41,21.5000136]
[1745027169053,1.21469624,135.7,135.43,21.5000136]
[1745027169246,2.72766915,135.99,135.43,21.5000136]
[1745027169553,1.21454951,135.98,134.37,3.00785692]
[1745027169753,1.21454951,135.97,135.43,21.5000136]
[1745027170055,1.21454951,135.96,135.43,21.5000136]
[1745027170854,1.21454951,135.95,135.43,21.5000136]
[1745027171156,1.21454951,135.95,134.37,3.00786448]
[1745027171347,2.72766915,135.99,135.44,21.5000136]
[1745027171654,1.21460059,135.98,135.44,21.5000136]
[1745027171854,1.21460059,135.98,134.38,1.36461056]
[1745027172055,1.21460059,135.98,135.44,21.5000136]
[1745027172354,1.21460059,135.98,134.38,1.36461056]
[1745027172556,1.21460059,135.98,135.43,21.5000136]
[1745027172756,1.21460059,135.97,134.36,1.36471557]
[1745027173059,1.21460059,135.96,135.43,21.5000136]
[1745027173255,1.21460059,135.95,135.43,21.5000136]
[1745027173555,1.21460059,135.95,134.36,1.36471557]
[1745027173556,1.21460059,135.94,134.36,1.36471557]
[1745027173756,1.21460059,135.93,135.43,21.5000136]
[1745027173954,1.21460059,135.92,135.43,21.5000136]
[1745027174152,1.21460059,135.91,135.43,21.5000136]
[1745027174348,1.21460059,135.9,135.43,21.5000136]
[1745027174549,1.21460059,135.89,135.43,21.5000136]
[1745027174750,1.21460059,135.88,135.43,21.5000136]
[1745027174959,1.21460059,135.87,134.36,1.36471557]
[1745027175158,1.21460059,135.86,135.42,21.5000136]
[1745027175455,1.21488039,135.85,135.4,21.5000136]
[1745027175657,1.21488039,135.84,135.4,21.5000136]
[1745027175856,1.21488039,135.83,135.4,21.5000136]
[1745027176051,1.21488039,135.82,135.4,21.5000136]
[1745027176252,1.21488039,135.81,135.41,21.5000136]
[1745027176454,1.21488039,135.8,135.41,21.5000136]
[1745027176656,2.72766915,135.97,135.41,21.5000136]
[1745027176857,1.21490013,135.96,135.41,21.5000136]
[1745027177056,1.21490013,135.95,135.41,21.5000136]
[1745027177260,1.21490013,135.94,135.42,21.5000136]
[1745027177454,1.21490013,135.93,135.42,21.5000136]
[1745027177653,1.21490013,135.93,134.36,1.36471557]
[1745027177654,1.21490013,135.92,134.36,1.36471557]
[1745027177853,1.21490013,135.91,134.37,1.3649166]
[1745027178050,1.21490335,135.9,135.42,20.21212641]
[1745027178251,1.21490335,135.89,135.42,20.21212641]
[1745027178455,1.21490335,135.88,134.36,1.36471557]
[1745027178653,1.21490335,135.87,135.41,20.21212641]
[1745027178852,1.21490335,135.86,135.41,20.21212641]
[1745027179051,1.21490335,135.85,134.36,1.36471557]
[1745027179255,1.21490335,135.84,135.42,20.21212641]
[1745027179455,1.21490335,135.83,135.42,20.21212641]
[1745027179657,1.21490335,135.82,134.37,1.29077725]
[1745027179857,1.21490335,135.81,135.43,20.21212641]
[1745027180056,1.21490335,135.8,135.43,20.21212641]
[1745027180256,1.21490335,135.79,135.43,20.21212641]
[1745027180462,1.21490335,135.78,135.44,20.21212641]
[1745027180660,1.21484451,135.77,135.44,20.21212641]
[1745027180963,1.21484451,135.76,135.44,18.92426305]
[1745027181159,1.21484451,135.75,135.45,18.92426305]
[1745027181365,1.21484451,135.74,135.45,18.92426305]
[1745027181665,1.21484451,135.73,135.46,18.92426305]
[1745027181865,1.21484451,135.72,135.46,18.92426305]
[1745027182065,2.72766915,135.95,135.46,18.92426305]
[1745027182066,1.21472746,135.71,135.46,18.92426305]
[1745027182269,1.21472746,135.7,135.47,18.92426305]
[1745027182467,1.21472746,135.69,135.47,18.92426305]
[1745027182665,1.21472746,135.68,134.36,1.36471557]
[1745027182865,1.21472746,135.67,135.47,18.92426305]
[1745027183165,1.21472746,135.66,135.47,18.92426305]
[1745027183467,1.21471506,135.65,134.53,1.28760129]
[1745027183766,1.21471506,135.64,135.47,18.92426305]
[1745027183965,1.21471506,135.63,134.53,1.28760129]
[1745027184161,1.21471506,135.62,135.47,17.63666177]
[1745027184467,1.21471506,135.61,135.47,17.63666177]
[1745027184667,1.21471503,135.6,134.36,1.36471557]
[1745027184864,1.21471503,135.59,135.47,17.63666177]
[1745027185063,1.21471503,135.58,135.47,17.63666177]
[1745027185369,1.21471503,135.57,135.47,17.63666177]
[1745027185768,1.21471503,135.56,135.47,17.63666177]
[1745027185969,1.21471334,135.55,135.47,17.63666177]
[1745027186170,1.21471334,135.54,135.48,17.63666177]
[1745027186572,1.21471334,135.53,134.59,1.28760129]
[1745027186869,2.72766915,135.98,134.59,1.28760129]
[1745027186870,1.21471334,135.52,134.59,1.28760129]
[1745027187069,1.21471334,135.51,135.48,16.34908431]
[1745027187270,2.72766915,135.98,135.48,16.34908431]
[1745027187463,2.72766915,135.98,134.36,1.36471557]
[1745027187464,1.21472851,135.97,134.36,1.36471557]
[1745027187669,1.21472851,135.96,135.48,16.34908431]
[1745027187865,1.21472851,135.95,135.48,16.34908431]
[1745027188165,1.21472851,135.94,135.48,16.34908431]
[1745027188470,1.21472851,135.93,135.48,16.34908431]
[1745027188670,1.21472707,135.92,135.48,16.34908431]
[1745027188968,1.21472707,135.91,135.48,16.34908431]
[1745027189169,1.21472707,135.9,135.49,16.34908431]
[1745027189366,1.21472707,135.89,135.49,16.34908431]
[1745027189571,1.21472707,135.88,135.49,16.34908431]
[1745027189771,1.21472707,135.87,135.5,16.34908431]
[1745027189976,2.72766915,135.98,135.5,15.0615783]
[1745027190168,1.21463771,135.86,135.51,15.0615783]
[1745027190374,1.21463771,135.85,135.51,15.0615783]
[1745027190568,1.21463771,135.84,135.53,15.0615783]
[1745027190873,1.21463771,135.83,135.54,15.0615783]
[1745027191073,1.21463771,135.82,135.54,15.0615783]
[1745027191374,1.21443088,135.81,135.54,15.0615783]
[1745027191673,1.21443088,135.8,135.54,15.0615783]
[1745027191874,1.21443088,135.79,135.54,15.0615783]
[1745027192075,1.21443088,135.78,135.54,15.0615783]
[1745027192375,1.21443088,135.77,135.55,15.0615783]
[1745027192571,2.72766915,136.01,135.55,15.0615783]
[1745027192776,1.21440079,135.76,134.37,3.0036063]
[1745027192976,1.21440079,135.75,135.55,15.0615783]
[1745027193174,1.21440079,135.74,135.55,15.0615783]
[1745027193475,1.21440079,135.73,134.37,3.0036063]
[1745027193675,1.21440079,135.72,135.55,15.0615783]
[1745027193876,1.21440079,135.71,134.39,3.0036063]
[1745027194075,1.21440079,135.7,135.55,14.21804238]
[1745027194277,1.21440079,135.69,135.55,14.21804238]
[1745027194475,1.21440081,135.68,134.39,3.00360626]
[1745027194675,1.21440081,135.67,135.55,14.21804238]
[1745027195076,1.21440081,135.66,134.4,1.28991604]
[1745027195276,1.28714885,136.0,135.55,14.21804238]
[1745027195575,1.21440242,135.99,135.55,14.21804238]
[1745027195777,1.21440242,135.98,134.4,1.28991604]
[1745027195975,1.21440242,135.97,135.55,14.21804238]
[1745027196176,1.21440242,135.96,135.55,14.21804238]
[1745027196377,1.21440242,135.95,134.38,3.00361461]
[1745027196577,1.21440242,135.94,135.55,14.21804238]
[1745027196778,1.21440093,135.94,135.55,14.21804238]
[1745027197077,1.21440093,135.93,134.37,3.00360808]
[1745027197279,1.21440093,135.92,135.55,14.21804238]
[1745027197478,1.21440093,135.91,135.55,14.21804238]
[1745027197670,1.21440093,135.9,134.39,3.00360808]
[1745027197870,1.21440093,135.89,135.53,14.21804238]
[1745027198074,1.21440093,135.88,135.55,14.21804238]
[1745027198478,1.21440093,135.87,134.39,3.00360808]
[1745027198778,1.28714885,135.93,134.39,3.00360808]
[1745027198779,1.21440093,135.86,135.55,14.21804238]
[1745027198974,1.21440093,135.85,135.55,14.21804238]
[1745027199171,1.21440093,135.84,135.55,14.21804238]
[1745027199378,1.21440093,135.83,135.55,14.21804238]
[1745027199577,1.21440093,135.82,135.55,14.21804238]
[1745027199778,1.21440093,135.81,135.55,14.21804238]
[1745027199979,1.21432803,135.8,135.55,14.21804238]
[1745027200278,1.21432803,135.79,135.56,14.21804238]
[1745027200478,1.21432803,135.78,135.56,14.21804238]
[1745027200680,1.21432803,135.77,134.5,1.28712505]
[1745027200880,1.21432803,135.76,135.56,14.21804238]
[1745027201080,1.21432803,135.75,135.56,14.21804238]
[1745027201379,1.21432803,135.74,135.56,14.21804238]
[1745027201580,1.21440414,135.73,135.56,14.21804238]
[1745027201780,1.21440414,135.72,135.56,14.21804238]
[1745027201981,1.21440414,135.71,135.56,14.21804238]
[1745027202182,1.21440414,135.7,135.56,14.21804238]
[1745027202481,1.21440414,135.69,135.56,14.21804238]
[1745027202679,1.21440414,135.68,135.56,14.21804238]
[1745027202981,1.21440414,135.67,135.56,14.21804238]
[1745027203178,1.21440414,135.66,135.57,14.21804238]
[1745027203375,1.21440414,135.65,135.57,14.21804238]
[1745027203675,1.21440414,135.64,134.57,1.28710125]
[1745027203883,1.21440414,135.63,135.57,14.21804238]
[1745027204080,1.21440414,135.62,135.57,14.21804238]
[1745027204381,1.21440414,135.61,134.57,1.28710125]
[1745027204580,1.21440414,135.6,135.57,14.21804238]
[1745027204781,1.21440414,135.59,135.57,14.21804238]
[1745027205074,1.21440414,135.58,134.57,1.28710125]
[1745027205279,2.72766915,136.01,135.57,14.21804238]
[1745027205481,1.21441287,136.0,135.57,14.21804238]
[1745027205681,1.21441287,135.99,134.58,1.36442094]
[1745027205882,1.21441287,135.98,135.57,14.21804238]
[1745027206082,1.21441287,135.97,135.57,14.21804238]
[1745027206383,1.28714885,135.97,135.57,14.21804238]
[1745027206682,1.21442377,135.96,135.57,14.21804238]
[1745027206881,1.21442377,135.95,135.57,14.21804238]
[1745027207082,1.21442377,135.94,135.57,14.21804238]
[1745027207282,1.21442377,135.93,135.58,14.21804238]
[1745027207483,1.21442377,135.92,135.58,14.21804238]
[1745027207679,1.21442377,135.91,134.61,1.28714885]
[1745027207985,1.21441457,135.9,135.58,14.21804238]
[1745027208179,1.21441457,135.89,135.58,14.21804238]
[1745027208482,1.21441457,135.88,134.58,1.36442094]
[1745027208676,1.21441457,135.87,135.58,14.21804238]
[1745027208883,1.21441457,135.86,135.58,14.21804238]
[1745027209082,1.21441457,135.85,134.58,1.36442094]
[1745027209279,1.21441457,135.84,135.58,14.21804238]
[1745027209486,1.28996386,135.84,135.58,14.21804238]